[Event "Titled Tuesday Blitz May 24 Late 2022"]
[White "Paravyan, David"]
[Black "Steinberg, Nitzan"]
[WhiteFideId "4194985"]
[BlackFideId "2801795"]
[WhiteElo "2569"]
[BlackElo "2471"]
[Result "1-0"]
[Round "04"]
[TimeControl "180+1"]
[Date "2022.05.24"]
[WhiteClock "0:01:10"]
[BlackClock "0:00:53"]

1. e4 {[%clk 0:03:00]}  c5 {[%clk 0:02:59]} 2. Nf3 {[%clk 0:03:01]}  Nc6 {[%clk 0:02:58]} 3. Nc3 {[%clk 0:03:00]}  d6 {[%clk 0:02:55]} 4. d4 {[%clk 0:03:00]}  cxd4 {[%clk 0:02:55]} 5. Nxd4 {[%clk 0:03:01]}  Nf6 {[%clk 0:02:54]} 6. Bg5 {[%clk 0:03:01]}  g6 {[%clk 0:02:55]} 7. Bxf6 {[%clk 0:02:59]}  exf6 {[%clk 0:02:55]} 8. Bb5 {[%clk 0:03:00]}  Bd7 {[%clk 0:02:54]} 9. Nde2 {[%clk 0:03:00]}  Be6 {[%clk 0:02:54]} 10. Nd4 {[%clk 0:03:00]}  Bd7 {[%clk 0:02:54]} 11. Qd2 {[%clk 0:02:58]}  Bg7 {[%clk 0:02:46]} 12. O-O-O {[%clk 0:02:58]}  O-O {[%clk 0:02:46]} 13. Nxc6 {[%clk 0:02:57]}  bxc6 {[%clk 0:02:44]} 14. Qxd6 {[%clk 0:02:57]}  cxb5 {[%clk 0:02:25]} 15. Qxd7 {[%clk 0:02:55]}  Qb6 {[%clk 0:02:23]} 16. Qd4 {[%clk 0:02:55]}  Qa5 {[%clk 0:02:17]} 17. Kb1 {[%clk 0:02:34]}  f5 {[%clk 0:02:17]} 18. e5 {[%clk 0:02:33]}  Rfd8 {[%clk 0:02:02]} 19. Nd5 {[%clk 0:02:30]}  Kh8 {[%clk 0:01:43]} 20. f4 {[%clk 0:02:29]}  Rd6 {[%clk 0:01:43]} 21. Qb4 {[%clk 0:02:13]}  Qxb4 {[%clk 0:01:36]} 22. Nxb4 {[%clk 0:02:11]}  Rxd1+ {[%clk 0:01:33]} 23. Rxd1 {[%clk 0:02:12]}  Bf8 {[%clk 0:01:32]} 24. Nc6 {[%clk 0:02:02]}  a6 {[%clk 0:01:31]} 25. Rd7 {[%clk 0:02:02]}  Kg8 {[%clk 0:01:32]} 26. c3 {[%clk 0:02:00]}  Bc5 {[%clk 0:01:32]} 27. Nd4 {[%clk 0:01:48]}  h5 {[%clk 0:01:08]} 28. Kc2 {[%clk 0:01:39]}  h4 {[%clk 0:01:09]} 29. Kd3 {[%clk 0:01:39]}  Rc8 {[%clk 0:01:03]} 30. Nf3 {[%clk 0:01:29]}  h3 {[%clk 0:01:03]} 31. gxh3 {[%clk 0:01:29]}  Bf2 {[%clk 0:00:57]} 32. Ng5 {[%clk 0:01:28]}  Rc4 {[%clk 0:00:56]} 33. Ke2 {[%clk 0:01:14]}  Rxf4 {[%clk 0:00:56]} 34. e6 {[%clk 0:01:10]}  fxe6 {[%clk 0:00:53]} 35. Rd8+ {[%clk 0:01:10]} 1-0


[Site "https://www.chess.com"]

[Event "Titled Tuesday Blitz May 24 Late 2022"]
[White "Petre, Nad-Titus"]
[Black "Tristan, Leonardo"]
[WhiteFideId "1204165"]
[BlackFideId "113816"]
[WhiteElo "2354"]
[BlackElo "2404"]
[Result "1-0"]
[Round "04"]
[TimeControl "180+1"]
[Date "2022.05.24"]
[WhiteClock "0:00:09"]
[BlackClock "0:00:04"]

1. d4 {[%clk 0:03:00]}  d5 {[%clk 0:03:00]} 2. Nf3 {[%clk 0:03:01]}  Nf6 {[%clk 0:02:59]} 3. Bf4 {[%clk 0:03:01]}  e6 {[%clk 0:02:59]} 4. e3 {[%clk 0:03:02]}  Bd6 {[%clk 0:02:59]} 5. Bg3 {[%clk 0:03:02]}  O-O {[%clk 0:02:59]} 6. Nbd2 {[%clk 0:03:00]}  c5 {[%clk 0:02:59]} 7. c3 {[%clk 0:03:00]}  Qc7 {[%clk 0:03:00]} 8. Bd3 {[%clk 0:02:54]}  Nbd7 {[%clk 0:03:00]} 9. Bxd6 {[%clk 0:02:36]}  Qxd6 {[%clk 0:03:00]} 10. O-O {[%clk 0:02:30]}  e5 {[%clk 0:02:59]} 11. dxe5 {[%clk 0:02:31]}  Nxe5 {[%clk 0:03:00]} 12. Nxe5 {[%clk 0:02:31]}  Qxe5 {[%clk 0:03:00]} 13. Nf3 {[%clk 0:02:31]}  Qc7 {[%clk 0:02:58]} 14. h3 {[%clk 0:02:30]}  Re8 {[%clk 0:02:51]} 15. c4 {[%clk 0:02:21]}  dxc4 {[%clk 0:01:57]} 16. Bxc4 {[%clk 0:02:22]}  h6 {[%clk 0:01:57]} 17. Rc1 {[%clk 0:02:21]}  b6 {[%clk 0:01:57]} 18. b4 {[%clk 0:02:20]}  Ne4 {[%clk 0:01:32]} 19. bxc5 {[%clk 0:02:13]}  Nxc5 {[%clk 0:01:31]} 20. Bd5 {[%clk 0:02:03]}  Bb7 {[%clk 0:01:29]} 21. Bxb7 {[%clk 0:02:03]}  Qxb7 {[%clk 0:01:29]} 22. Nd4 {[%clk 0:02:03]}  Rac8 {[%clk 0:01:28]} 23. Qg4 {[%clk 0:02:01]}  Qe4 {[%clk 0:01:17]} 24. Nf5 {[%clk 0:01:47]}  Qxg4 {[%clk 0:01:16]} 25. hxg4 {[%clk 0:01:47]}  Rcd8 {[%clk 0:01:03]} 26. Rfd1 {[%clk 0:01:47]}  Kf8 {[%clk 0:01:02]} 27. Kf1 {[%clk 0:01:43]}  Ne6 {[%clk 0:00:44]} 28. f3 {[%clk 0:01:26]}  Rxd1+ {[%clk 0:00:43]} 29. Rxd1 {[%clk 0:01:25]}  Rc8 {[%clk 0:00:44]} 30. Rd7 {[%clk 0:01:16]}  Rc1+ {[%clk 0:00:38]} 31. Ke2 {[%clk 0:01:17]}  Rc2+ {[%clk 0:00:39]} 32. Rd2 {[%clk 0:01:08]}  Rc7 {[%clk 0:00:37]} 33. Nd6 {[%clk 0:00:59]}  a6 {[%clk 0:00:29]} 34. f4 {[%clk 0:00:54]}  b5 {[%clk 0:00:26]} 35. Ne4 {[%clk 0:00:53]}  Ke7 {[%clk 0:00:24]} 36. f5 {[%clk 0:00:53]}  Ng5 {[%clk 0:00:24]} 37. Nxg5 {[%clk 0:00:41]}  hxg5 {[%clk 0:00:25]} 38. Kf3 {[%clk 0:00:37]}  Rc3 {[%clk 0:00:18]} 39. Ke4 {[%clk 0:00:30]}  Rc4+ {[%clk 0:00:18]} 40. Kf3 {[%clk 0:00:24]}  a5 {[%clk 0:00:16]} 41. Rb2 {[%clk 0:00:22]}  b4 {[%clk 0:00:16]} 42. Rd2 {[%clk 0:00:20]}  Rc5 {[%clk 0:00:12]} 43. Ke4 {[%clk 0:00:17]}  Rb5 {[%clk 0:00:11]} 44. Kd4 {[%clk 0:00:15]}  Kd6 {[%clk 0:00:12]} 45. Kc4+ {[%clk 0:00:15]}  Kc6 {[%clk 0:00:13]} 46. Rd6+ {[%clk 0:00:13]}  Kxd6 {[%clk 0:00:10]} 47. Kxb5 {[%clk 0:00:14]}  Kd5 {[%clk 0:00:07]} 48. Kxa5 {[%clk 0:00:14]}  Kc4 {[%clk 0:00:08]} 49. e4 {[%clk 0:00:11]}  f6 {[%clk 0:00:08]} 50. Ka4 {[%clk 0:00:09]}  Kc3 {[%clk 0:00:08]} 51. Kb5 {[%clk 0:00:09]}  b3 {[%clk 0:00:03]} 52. axb3 {[%clk 0:00:10]}  Kxb3 {[%clk 0:00:04]} 53. Kc5 {[%clk 0:00:09]}  Kc3 {[%clk 0:00:04]} 54. Kd5 {[%clk 0:00:10]}  Kd3 {[%clk 0:00:04]} 55. Ke6 {[%clk 0:00:07]}  Kxe4 {[%clk 0:00:04]} 56. Kf7 {[%clk 0:00:08]}  Kf4 {[%clk 0:00:03]} 57. Kxg7 {[%clk 0:00:08]}  Kxg4 {[%clk 0:00:04]} 58. Kxf6 {[%clk 0:00:09]} 1-0


[Site "https://www.chess.com"]

[Event "Titled Tuesday Blitz May 24 Late 2022"]
[White "Petrovic, Aleksa"]
[Black "Roque Sola, Gisela"]
[WhiteFideId "967629"]
[BlackFideId "5120241"]
[WhiteElo "2144"]
[BlackElo "1863"]
[Result "1-0"]
[Round "04"]
[TimeControl "180+1"]
[Date "2022.05.25"]
[WhiteClock "0:00:06"]
[BlackClock "0:00:09"]

1. d4 {[%clk 0:03:00]}  e6 {[%clk 0:02:57]} 2. c4 {[%clk 0:02:59]}  Nf6 {[%clk 0:02:56]} 3. Nf3 {[%clk 0:02:59]}  d5 {[%clk 0:02:53]} 4. Nc3 {[%clk 0:02:58]}  Be7 {[%clk 0:02:50]} 5. Bf4 {[%clk 0:02:56]}  O-O {[%clk 0:02:45]} 6. a3 {[%clk 0:02:55]}  c5 {[%clk 0:02:36]} 7. dxc5 {[%clk 0:02:53]}  Bxc5 {[%clk 0:02:34]} 8. e3 {[%clk 0:02:52]}  Nc6 {[%clk 0:02:32]} 9. cxd5 {[%clk 0:02:51]}  exd5 {[%clk 0:02:30]} 10. Bb5 {[%clk 0:02:40]}  h6 {[%clk 0:02:19]} 11. O-O {[%clk 0:02:34]}  Bg4 {[%clk 0:02:18]} 12. h3 {[%clk 0:02:31]}  Bh5 {[%clk 0:02:17]} 13. Rc1 {[%clk 0:02:22]}  Bd6 {[%clk 0:02:12]} 14. Nxd5 {[%clk 0:02:15]}  Nxd5 {[%clk 0:02:06]} 15. Qxd5 {[%clk 0:02:16]}  Bxf4 {[%clk 0:02:04]} 16. Bxc6 {[%clk 0:02:11]}  bxc6 {[%clk 0:01:47]} 17. Qxh5 {[%clk 0:02:11]}  Bd6 {[%clk 0:01:23]} 18. Rxc6 {[%clk 0:02:11]}  Be7 {[%clk 0:01:19]} 19. Ne5 {[%clk 0:01:54]}  Bf6 {[%clk 0:01:16]} 20. Rd1 {[%clk 0:01:46]}  Qa5 {[%clk 0:01:08]} 21. Rxf6 {[%clk 0:00:36]}  gxf6 {[%clk 0:01:07]} 22. Rd4 {[%clk 0:00:32]}  Qxe5 {[%clk 0:00:49]} 23. Qxh6 {[%clk 0:00:30]}  f5 {[%clk 0:00:44]} 24. Qg5+ {[%clk 0:00:30]}  Qg7 {[%clk 0:00:41]} 25. Qxf5 {[%clk 0:00:30]}  Rab8 {[%clk 0:00:31]} 26. Rg4 {[%clk 0:00:27]}  f6 {[%clk 0:00:27]} 27. Qd7 {[%clk 0:00:20]}  Qxg4 {[%clk 0:00:25]} 28. Qxg4+ {[%clk 0:00:18]}  Kf7 {[%clk 0:00:25]} 29. Qd7+ {[%clk 0:00:18]}  Kg6 {[%clk 0:00:22]} 30. Qxa7 {[%clk 0:00:18]}  Rxb2 {[%clk 0:00:21]} 31. a4 {[%clk 0:00:17]}  Rd8 {[%clk 0:00:19]} 32. a5 {[%clk 0:00:16]}  Rdd2 {[%clk 0:00:19]} 33. e4 {[%clk 0:00:16]}  Rd1+ {[%clk 0:00:17]} 34. Kh2 {[%clk 0:00:15]}  Rbb1 {[%clk 0:00:17]} 35. a6 {[%clk 0:00:15]}  Rh1+ {[%clk 0:00:17]} 36. Kg3 {[%clk 0:00:15]}  Rb3+ {[%clk 0:00:17]} 37. f3 {[%clk 0:00:15]}  Rc1 {[%clk 0:00:16]} 38. Qa8 {[%clk 0:00:11]}  Rc2 {[%clk 0:00:15]} 39. a7 {[%clk 0:00:11]}  Rbb2 {[%clk 0:00:15]} 40. Qg8+ {[%clk 0:00:11]}  Kh6 {[%clk 0:00:14]} 41. Kf4 {[%clk 0:00:09]}  Rxg2 {[%clk 0:00:13]} 42. Qf8+ {[%clk 0:00:09]}  Kg6 {[%clk 0:00:12]} 43. Qg8+ {[%clk 0:00:07]}  Kh6 {[%clk 0:00:12]} 44. Qxg2 {[%clk 0:00:07]}  Rxg2 {[%clk 0:00:11]} 45. a8=Q {[%clk 0:00:08]}  f5 {[%clk 0:00:10]} 46. Qh8+ {[%clk 0:00:07]}  Kg6 {[%clk 0:00:09]} 47. Qg8+ {[%clk 0:00:07]}  Kh5 {[%clk 0:00:09]} 48. Qxg2 {[%clk 0:00:06]}  fxe4 {[%clk 0:00:09]} 49. Qg5# {[%clk 0:00:06]} 1-0


[Site "https://www.chess.com"]

[Event "Titled Tuesday Blitz May 24 Late 2022"]
[White "Quesada Perez, Yuniesky"]
[Black "Janaszak, Dawid"]
[WhiteFideId "3504409"]
[BlackFideId "1119206"]
[WhiteElo "2622"]
[BlackElo "2199"]
[Result "0-1"]
[Round "04"]
[TimeControl "180+1"]
[Date "2022.05.24"]
[WhiteClock "0:00:25"]
[BlackClock "0:01:00"]

1. e4 {[%clk 0:03:00]}  c5 {[%clk 0:03:00]} 2. Nf3 {[%clk 0:03:00]}  Nc6 {[%clk 0:03:00]} 3. Bb5 {[%clk 0:02:59]}  g6 {[%clk 0:03:00]} 4. O-O {[%clk 0:02:59]}  Bg7 {[%clk 0:03:00]} 5. c3 {[%clk 0:02:59]}  Nf6 {[%clk 0:03:00]} 6. Re1 {[%clk 0:02:59]}  O-O {[%clk 0:02:58]} 7. d4 {[%clk 0:02:59]}  d5 {[%clk 0:02:58]} 8. e5 {[%clk 0:02:59]}  Ne4 {[%clk 0:02:58]} 9. Bxc6 {[%clk 0:02:56]}  bxc6 {[%clk 0:02:58]} 10. Be3 {[%clk 0:02:57]}  cxd4 {[%clk 0:02:50]} 11. cxd4 {[%clk 0:02:58]}  Qb6 {[%clk 0:02:43]} 12. b3 {[%clk 0:02:52]}  a5 {[%clk 0:02:33]} 13. Nfd2 {[%clk 0:02:49]}  Bf5 {[%clk 0:02:25]} 14. Nxe4 {[%clk 0:02:48]}  Bxe4 {[%clk 0:02:25]} 15. Nc3 {[%clk 0:02:48]}  Bf5 {[%clk 0:02:21]} 16. Qd2 {[%clk 0:02:47]}  Rfc8 {[%clk 0:02:18]} 17. Na4 {[%clk 0:02:45]}  Qb4 {[%clk 0:02:16]} 18. Rac1 {[%clk 0:02:45]}  Rab8 {[%clk 0:02:07]} 19. Rc5 {[%clk 0:02:43]}  f6 {[%clk 0:01:57]} 20. Rxa5 {[%clk 0:02:03]}  fxe5 {[%clk 0:01:55]} 21. dxe5 {[%clk 0:02:04]}  Bxe5 {[%clk 0:01:33]} 22. Qxb4 {[%clk 0:01:22]}  Rxb4 {[%clk 0:01:34]} 23. Bc5 {[%clk 0:01:22]}  Re4 {[%clk 0:01:32]} 24. Rxe4 {[%clk 0:01:21]}  Bxe4 {[%clk 0:01:28]} 25. Bxe7 {[%clk 0:01:20]}  Re8 {[%clk 0:01:16]} 26. Ra7 {[%clk 0:01:08]}  Bb1 {[%clk 0:01:09]} 27. a3 {[%clk 0:00:57]}  Bd6 {[%clk 0:00:59]} 28. Nc3 {[%clk 0:00:26]}  Bxe7 {[%clk 0:01:00]} 29. Nxb1 {[%clk 0:00:25]}  Bc5 {[%clk 0:01:00]} 0-1


[Site "https://www.chess.com"]

[Event "Titled Tuesday Blitz May 24 Late 2022"]
[White "Ribeiro, Matheus Mendes Domingues"]
[Black "Gatterer, Florian"]
[WhiteFideId "324226923"]
[BlackFideId "811688"]
[WhiteElo "1919"]
[BlackElo "2218"]
[Result "1-0"]
[Round "04"]
[TimeControl "180+1"]
[Date "2022.05.25"]
[WhiteClock "0:00:23"]
[BlackClock "0:00:10"]

1. c4 {[%clk 0:03:00]}  d6 {[%clk 0:02:56]} 2. Nf3 {[%clk 0:02:59]}  g6 {[%clk 0:02:51]} 3. Nc3 {[%clk 0:02:59]}  Bg7 {[%clk 0:02:51]} 4. g3 {[%clk 0:02:49]}  c5 {[%clk 0:02:50]} 5. Bg2 {[%clk 0:02:49]}  Nc6 {[%clk 0:02:50]} 6. O-O {[%clk 0:02:48]}  Bd7 {[%clk 0:02:50]} 7. d4 {[%clk 0:02:47]}  cxd4 {[%clk 0:02:47]} 8. Nb5 {[%clk 0:02:47]}  Qb6 {[%clk 0:02:46]} 9. Qb3 {[%clk 0:02:26]}  Nf6 {[%clk 0:02:22]} 10. Bd2 {[%clk 0:02:19]}  O-O {[%clk 0:02:19]} 11. Rfd1 {[%clk 0:02:18]}  a6 {[%clk 0:02:17]} 12. Nbxd4 {[%clk 0:02:16]}  Qxb3 {[%clk 0:02:09]} 13. Nxb3 {[%clk 0:02:17]}  Ne4 {[%clk 0:02:08]} 14. Rab1 {[%clk 0:02:14]}  Nxd2 {[%clk 0:02:04]} 15. Rxd2 {[%clk 0:02:14]}  Rac8 {[%clk 0:02:04]} 16. c5 {[%clk 0:02:14]}  Bf5 {[%clk 0:02:01]} 17. Rc1 {[%clk 0:02:13]}  Bh6 {[%clk 0:01:52]} 18. e3 {[%clk 0:02:12]}  Nb4 {[%clk 0:01:39]} 19. cxd6 {[%clk 0:02:03]}  exd6 {[%clk 0:01:39]} 20. Rxc8 {[%clk 0:01:54]}  Rxc8 {[%clk 0:01:40]} 21. a3 {[%clk 0:01:49]}  Nd3 {[%clk 0:01:26]} 22. Nh4 {[%clk 0:01:35]}  Nc5 {[%clk 0:01:13]} 23. Nxc5 {[%clk 0:01:27]}  Rxc5 {[%clk 0:01:08]} 24. Nxf5 {[%clk 0:01:27]}  gxf5 {[%clk 0:01:08]} 25. Bxb7 {[%clk 0:01:27]}  a5 {[%clk 0:01:02]} 26. Rxd6 {[%clk 0:01:27]}  Rb5 {[%clk 0:01:02]} 27. Rxh6 {[%clk 0:01:06]}  Rxb7 {[%clk 0:01:01]} 28. Ra6 {[%clk 0:01:07]}  Rxb2 {[%clk 0:01:00]} 29. Rxa5 {[%clk 0:01:07]}  Rb3 {[%clk 0:00:58]} 30. Ra6 {[%clk 0:00:58]}  Kg7 {[%clk 0:00:56]} 31. h4 {[%clk 0:00:58]}  h5 {[%clk 0:00:56]} 32. Kg2 {[%clk 0:00:58]}  f6 {[%clk 0:00:56]} 33. a4 {[%clk 0:00:57]}  Kg6 {[%clk 0:00:56]} 34. a5 {[%clk 0:00:57]}  Ra3 {[%clk 0:00:54]} 35. Ra8 {[%clk 0:00:57]}  Ra4 {[%clk 0:00:54]} 36. a6 {[%clk 0:00:58]}  Kg7 {[%clk 0:00:54]} 37. a7 {[%clk 0:00:58]}  Kh7 {[%clk 0:00:54]} 38. Rf8 {[%clk 0:00:54]}  Rxa7 {[%clk 0:00:52]} 39. Rxf6 {[%clk 0:00:55]}  Ra5 {[%clk 0:00:51]} 40. Kf3 {[%clk 0:00:55]}  Kg7 {[%clk 0:00:52]} 41. Rb6 {[%clk 0:00:55]}  Ra4 {[%clk 0:00:51]} 42. Rd6 {[%clk 0:00:55]}  Rb4 {[%clk 0:00:51]} 43. Rd4 {[%clk 0:00:55]}  Rb6 {[%clk 0:00:49]} 44. Kf4 {[%clk 0:00:56]}  Kg6 {[%clk 0:00:50]} 45. f3 {[%clk 0:00:56]}  Ra6 {[%clk 0:00:49]} 46. Rd5 {[%clk 0:00:56]}  Ra4+ {[%clk 0:00:48]} 47. e4 {[%clk 0:00:56]}  fxe4 {[%clk 0:00:41]} 48. fxe4 {[%clk 0:00:57]}  Ra6 {[%clk 0:00:37]} 49. Rg5+ {[%clk 0:00:57]}  Kh6 {[%clk 0:00:38]} 50. Rd5 {[%clk 0:00:52]}  Rf6+ {[%clk 0:00:37]} 51. Ke3 {[%clk 0:00:50]}  Rf1 {[%clk 0:00:35]} 52. Rd6+ {[%clk 0:00:48]}  Kh7 {[%clk 0:00:35]} 53. Rd3 {[%clk 0:00:48]}  Kh6 {[%clk 0:00:33]} 54. e5 {[%clk 0:00:46]}  Re1+ {[%clk 0:00:29]} 55. Kd4 {[%clk 0:00:46]}  Kg6 {[%clk 0:00:28]} 56. Kd5 {[%clk 0:00:46]}  Kf5 {[%clk 0:00:28]} 57. Rf3+ {[%clk 0:00:46]}  Kg4 {[%clk 0:00:28]} 58. Rd3 {[%clk 0:00:37]}  Kf5 {[%clk 0:00:28]} 59. Kd6 {[%clk 0:00:22]}  Rxe5 {[%clk 0:00:20]} 60. Rf3+ {[%clk 0:00:22]}  Kg4 {[%clk 0:00:20]} 61. Kxe5 {[%clk 0:00:20]}  Kxf3 {[%clk 0:00:20]} 62. Kf5 {[%clk 0:00:21]}  Kxg3 {[%clk 0:00:20]} 63. Kg5 {[%clk 0:00:22]}  Kf3 {[%clk 0:00:17]} 64. Kxh5 {[%clk 0:00:22]}  Kf4 {[%clk 0:00:18]} 65. Kg6 {[%clk 0:00:22]}  Ke5 {[%clk 0:00:19]} 66. h5 {[%clk 0:00:23]}  Ke6 {[%clk 0:00:20]} 67. h6 {[%clk 0:00:23]}  Ke5 {[%clk 0:00:21]} 68. h7 {[%clk 0:00:23]}  Kf4 {[%clk 0:00:21]} 69. h8=Q {[%clk 0:00:24]}  Kg4 {[%clk 0:00:22]} 70. Qf6 {[%clk 0:00:24]}  Kg3 {[%clk 0:00:22]} 71. Qf5 {[%clk 0:00:24]}  Kg2 {[%clk 0:00:23]} 72. Qf4 {[%clk 0:00:24]}  Kg1 {[%clk 0:00:10]} 73. Qf3 {[%clk 0:00:23]} 1-0


[Site "https://www.chess.com"]

[Event "Titled Tuesday Blitz May 24 Late 2022"]
[White "Roman, Rodrigo"]
[Black "Vujic, Mihailo"]
[WhiteFideId "3701220"]
[BlackFideId "918873"]
[WhiteElo "2001"]
[BlackElo "2256"]
[Result "1-0"]
[Round "04"]
[TimeControl "180+1"]
[Date "2022.05.25"]
[WhiteClock "0:00:16"]
[BlackClock "0:00:07"]

1. Nf3 {[%clk 0:03:00]}  Nc6 {[%clk 0:02:58]} 2. b3 {[%clk 0:03:01]}  e5 {[%clk 0:02:57]} 3. Bb2 {[%clk 0:03:01]}  e4 {[%clk 0:02:58]} 4. Nd4 {[%clk 0:03:01]}  Nxd4 {[%clk 0:02:58]} 5. Bxd4 {[%clk 0:03:02]}  c5 {[%clk 0:02:58]} 6. Bb2 {[%clk 0:03:02]}  Nf6 {[%clk 0:02:59]} 7. e3 {[%clk 0:03:02]}  d5 {[%clk 0:02:59]} 8. Be2 {[%clk 0:03:01]}  Bd6 {[%clk 0:02:58]} 9. h3 {[%clk 0:03:00]}  Kf8 {[%clk 0:02:57]} 10. d3 {[%clk 0:03:00]}  exd3 {[%clk 0:02:56]} 11. cxd3 {[%clk 0:03:01]}  Be6 {[%clk 0:02:56]} 12. Nd2 {[%clk 0:02:57]}  Rc8 {[%clk 0:02:53]} 13. e4 {[%clk 0:02:52]}  d4 {[%clk 0:02:51]} 14. O-O {[%clk 0:02:48]}  Qd7 {[%clk 0:02:50]} 15. f4 {[%clk 0:02:47]}  Bb8 {[%clk 0:02:45]} 16. f5 {[%clk 0:02:39]}  Qc7 {[%clk 0:02:43]} 17. Nf3 {[%clk 0:02:38]}  Bd7 {[%clk 0:02:40]} 18. Rc1 {[%clk 0:02:34]}  Qg3 {[%clk 0:02:38]} 19. Qe1 {[%clk 0:02:30]}  b6 {[%clk 0:02:33]} 20. Qxg3 {[%clk 0:02:09]}  Bxg3 {[%clk 0:02:34]} 21. Nxd4 {[%clk 0:02:02]}  cxd4 {[%clk 0:02:31]} 22. Bxd4 {[%clk 0:02:03]}  Ke7 {[%clk 0:02:27]} 23. e5 {[%clk 0:01:56]}  Nd5 {[%clk 0:02:17]} 24. Rc4 {[%clk 0:01:46]}  Bb5 {[%clk 0:02:07]} 25. f6+ {[%clk 0:01:45]}  gxf6 {[%clk 0:02:00]} 26. exf6+ {[%clk 0:01:35]}  Kd8 {[%clk 0:02:00]} 27. Rxc8+ {[%clk 0:01:32]}  Kxc8 {[%clk 0:01:59]} 28. Rf5 {[%clk 0:01:27]}  Bc6 {[%clk 0:01:52]} 29. Rg5 {[%clk 0:01:16]}  Bc7 {[%clk 0:01:41]} 30. Rg7 {[%clk 0:01:16]}  Be8 {[%clk 0:01:13]} 31. Bf3 {[%clk 0:01:12]}  Nf4 {[%clk 0:01:10]} 32. Bg4+ {[%clk 0:00:56]}  Kb8 {[%clk 0:01:08]} 33. Bf5 {[%clk 0:00:54]}  h5 {[%clk 0:01:03]} 34. Bb2 {[%clk 0:00:45]}  h4 {[%clk 0:00:52]} 35. Kf2 {[%clk 0:00:41]}  Nd5 {[%clk 0:00:32]} 36. Be4 {[%clk 0:00:34]}  Nf4 {[%clk 0:00:26]} 37. Bf5 {[%clk 0:00:34]}  Bd6 {[%clk 0:00:24]} 38. Kf3 {[%clk 0:00:32]}  Bc6+ {[%clk 0:00:21]} 39. Be4 {[%clk 0:00:29]}  Bxe4+ {[%clk 0:00:19]} 40. dxe4 {[%clk 0:00:30]}  Ne6 {[%clk 0:00:16]} 41. Rg4 {[%clk 0:00:25]}  Rc8 {[%clk 0:00:16]} 42. e5 {[%clk 0:00:25]}  Bc5 {[%clk 0:00:13]} 43. Rxh4 {[%clk 0:00:23]}  Rg8 {[%clk 0:00:12]} 44. g4 {[%clk 0:00:22]}  Ng5+ {[%clk 0:00:11]} 45. Ke2 {[%clk 0:00:17]}  Kc8 {[%clk 0:00:10]} 46. Bc1 {[%clk 0:00:15]}  Ne6 {[%clk 0:00:09]} 47. Rh7 {[%clk 0:00:13]}  Nd4+ {[%clk 0:00:07]} 48. Kd3 {[%clk 0:00:13]}  Nc6 {[%clk 0:00:08]} 49. Ke4 {[%clk 0:00:13]}  Re8 {[%clk 0:00:08]} 50. Bf4 {[%clk 0:00:13]}  Bd6 {[%clk 0:00:08]} 51. Rxf7 {[%clk 0:00:12]}  Bxe5 {[%clk 0:00:08]} 52. Bxe5 {[%clk 0:00:11]}  Nxe5 {[%clk 0:00:08]} 53. Re7 {[%clk 0:00:10]}  Rxe7 {[%clk 0:00:06]} 54. fxe7 {[%clk 0:00:11]}  Kd7 {[%clk 0:00:06]} 55. e8=Q+ {[%clk 0:00:11]}  Kxe8 {[%clk 0:00:06]} 56. Kxe5 {[%clk 0:00:12]}  a5 {[%clk 0:00:06]} 57. h4 {[%clk 0:00:12]}  Kf7 {[%clk 0:00:06]} 58. h5 {[%clk 0:00:12]}  a4 {[%clk 0:00:07]} 59. bxa4 {[%clk 0:00:12]}  Kg7 {[%clk 0:00:07]} 60. Kf5 {[%clk 0:00:13]}  b5 {[%clk 0:00:07]} 61. axb5 {[%clk 0:00:13]}  Kh6 {[%clk 0:00:07]} 62. b6 {[%clk 0:00:14]}  Kg7 {[%clk 0:00:08]} 63. b7 {[%clk 0:00:15]}  Kh6 {[%clk 0:00:08]} 64. b8=Q {[%clk 0:00:15]}  Kh7 {[%clk 0:00:08]} 65. g5 {[%clk 0:00:15]}  Kg7 {[%clk 0:00:08]} 66. Qc7+ {[%clk 0:00:15]}  Kg8 {[%clk 0:00:08]} 67. Kg6 {[%clk 0:00:16]}  Kh8 {[%clk 0:00:07]} 68. Qh7# {[%clk 0:00:16]} 1-0


[Site "https://www.chess.com"]